fUSD/lending_fUSD_20250826
["ID","MTS","AMOUNT","RATE_DAILY","PERIOD"]
[381487716,1756230768380,-150.0,0.00028768,2]
[381487717,1756230768389,-500.0,0.00028768,2]
[381487718,1756230768398,-500.0,0.00028768,2]
[381487719,1756230768407,-150.70155424,0.00028768,2]
[381487720,1756230768417,-150.0,0.00028768,2]
[381487721,1756230768426,-500.0,0.00028768,2]
[381487722,1756230768435,-150.0,0.00028768,2]
[381487723,1756230768444,-150.0,0.00028768,2]
[381487724,1756230768453,-500.0,0.00028768,2]
[381487725,1756230768463,-500.0,0.00028768,2]
[381487726,1756230768472,-150.38113057,0.00028768,2]
[381487727,1756230768481,-150.0,0.00028768,2]
[381487728,1756230768490,-500.0,0.00028768,2]
[381487729,1756230768498,-500.0,0.00028768,2]
[381487730,1756230768507,-150.0,0.00028768,2]
[381487731,1756230768516,-500.0,0.00028768,2]
[381487732,1756230768526,-500.0,0.00028768,2]
[381487733,1756230768535,-300.0,0.00028768,2]
[381487734,1756230768545,-150.0,0.00028768,2]
[381487735,1756230768554,-500.0,0.00028768,2]
[381487736,1756230768564,-500.0,0.00028768,2]
[381487737,1756230768573,-1349.0,0.00028768,2]
[381487738,1756230768582,-500.0,0.00028768,2]
[381487739,1756230768592,-150.0,0.00028768,2]
[381487740,1756230768601,-150.0,0.00028768,2]
[381487741,1756230768611,-150.0,0.00028768,2]
[381487742,1756230768620,-500.0,0.00028768,2]
[381487743,1756230768629,-150.0,0.00028768,2]
[381487744,1756230768638,-500.0,0.00028768,2]
[381487745,1756230768648,-500.0,0.00028768,2]
[381487746,1756230768657,-150.0,0.00028768,2]
[381487747,1756230768667,-150.0,0.00028768,2]
[381487748,1756230768679,-1052.0,0.00028768,2]
[381487749,1756230768689,-500.0,0.00028768,2]
[381487750,1756230768698,-150.0,0.00028768,2]
[381487751,1756230768708,-150.0,0.00028768,2]
[381487752,1756230768718,-151.25084127,0.00028768,2]
[381487753,1756230768728,-150.0,0.00028774,2]
[381487754,1756230768737,-1000.0,0.00028777,2]
[381487755,1756230768746,-429.22025106,0.00028788,2]
[381487756,1756230768761,-165.7,0.000288,19]
[381487757,1756230768771,-1000.0,0.000288,2]
[381487758,1756230768781,-1425.0,0.00028817,2]
[381487759,1756230768790,-1000.0,0.00028822,2]
[381487760,1756230768800,-1425.0,0.00028846,2]
[381487761,1756230768809,-500.0,0.00028849,5]
[381487762,1756230768819,-528.93,0.00028849,5]
[381487763,1756230768829,-500.0,0.00028849,5]
[381487764,1756230768839,-230.6186944,0.0002885,2]
[381487765,1756230768849,-2871.4493767,0.0002885,2]
[381487766,1756230768858,-2100.0,0.00028854,4]
[381487767,1756230768868,-200.0,0.0002887,30]
[381487768,1756230768878,-296.0,0.0002887,2]
[381487769,1756230768893,-213.0,0.0002887,2]
[381487770,1756230768902,-1074.25,0.00028904,9]
[381487771,1756230768912,-3000.0,0.00028939,7]
[381487772,1756230768922,-400.0,0.0002897,2]
[381487773,1756230768931,-900.0,0.00028988,11]
[381487774,1756230768940,-900.0,0.00028988,11]
[381487775,1756230768949,-900.0,0.00028988,11]
[381487776,1756230768959,-900.0,0.00028988,11]
[381487777,1756230768968,-900.0,0.00028988,11]
[381487778,1756230768981,-900.0,0.00028988,11]
[381487779,1756230768990,-900.0,0.00028988,11]
[381487780,1756230769003,-900.0,0.00028988,11]
[381487781,1756230769013,-171.0,0.00028997,14]
[381487782,1756230769024,-528.0,0.00028997,14]
[381487783,1756230769033,-150.0,0.00028999,2]
[381487784,1756230769044,-343.995,0.00028999,2]
[381487785,1756230769054,-500.0,0.00028999,5]
[381487786,1756230769064,-500.0,0.00028999,5]
[381487787,1756230769074,-500.0,0.00028999,5]
[381487788,1756230769084,-528.93,0.00028999,5]
[381487789,1756230769093,-500.0,0.00028999,5]
[381487790,1756230769103,-2000.0,0.00028999,2]
[381487791,1756230769113,-1000.0,0.00028999,2]
[381487792,1756230769122,-6002.05,0.00029,7]
[381487793,1756230769131,-212.1,0.00029,2]
[381487794,1756230769141,-50982.09783953,0.00029,2]
[381487795,1756230769151,-150.0,0.00029,2]
[381487796,1756230769160,-1800.0,0.00029,30]
[381487797,1756230769170,-1395.95,0.00029,7]
[381487798,1756230769179,-4976.2,0.00029,7]
[381487799,1756230769188,-160.14,0.00029,10]
[381487800,1756230769198,-5345.58,0.00029,7]
[381487801,1756230769208,-1274.43,0.00029,7]
[381487802,1756230769217,-1200.41,0.00029,7]
[381487803,1756230769227,-200350.13716384,0.00029,2]
[381487804,1756230769236,-4038.93,0.00029,7]
[381487805,1756230769246,-1564.08,0.00029,7]
[381487806,1756230769255,-250.0,0.00029,7]
[381487807,1756230769265,-844.63891918,0.00029,7]
[381487808,1756230769274,-3391.41,0.00029,7]
[381487809,1756230769283,-446.0,0.00029,30]
[381487810,1756230769293,-1768.12,0.00029,7]
[381487811,1756230769302,-637.0,0.00029,30]
[381487812,1756230769310,-900.0,0.00029,11]
[381487813,1756230769320,-900.0,0.00029,11]
[381487814,1756230769329,-900.0,0.00029,11]
[381487815,1756230769338,-900.0,0.00029,11]
[381487816,1756230769348,-900.0,0.00029,11]
[381487817,1756230769357,-900.0,0.00029,11]
[381487818,1756230769366,-900.0,0.00029,11]
[381487819,1756230769376,-900.0,0.00029,11]
[381487820,1756230769385,-2241.2,0.00029,7]
[381487821,1756230769394,-1500.0,0.00029,2]
[381487822,1756230769403,-2684.69,0.00029,7]
[381487823,1756230769413,-428.66086817,0.00029022,5]
[381487824,1756230769421,-528.93,0.00029022,5]
[381487825,1756230769430,-506.5071108,0.00029022,5]
[381487826,1756230769440,-1458.79,0.00029023,5]
[381487827,1756230769449,-400.0,0.00029023,5]
[381487828,1756230769458,-634.76,0.00029023,5]
[381487829,1756230769467,-209.6048374,0.00029023,5]
[381487830,1756230769476,-539.93,0.00029023,5]
[381487831,1756230769484,-690.63,0.00029023,5]
[381487832,1756230769494,-400.0,0.00029023,5]
[381487833,1756230769503,-1099.28,0.00029023,5]
[381487834,1756230769512,-598.43,0.00029023,5]
[381487835,1756230769521,-861.3,0.00029023,5]
[381487836,1756230769530,-400.0,0.00029023,5]
[381487837,1756230769539,-1174.77,0.00029023,5]
[381487838,1756230769548,-774.77,0.00029023,5]
[381487839,1756230769557,-400.0,0.00029023,5]
[381487840,1756230769566,-400.0,0.00029023,5]
[381487841,1756230769575,-1150.13,0.00029023,5]
[381487842,1756230769584,-400.0,0.00029023,5]
[381487843,1756230769593,-554.69,0.00029023,5]
[381487844,1756230769602,-689.46,0.00029023,5]
[381487845,1756230769611,-400.0,0.00029023,5]
[381487846,1756230769620,-400.0,0.00029023,5]
[381487847,1756230769629,-400.0,0.00029023,5]
[381487848,1756230769638,-933.25,0.00029023,5]
[381487849,1756230769647,-989.27,0.00029023,5]
[381487850,1756230769655,-400.0,0.00029023,5]
[381487851,1756230769664,-400.0,0.00029023,5]
[381487852,1756230769676,-445.40935917,0.00029023,5]
[381487853,1756230769686,-820.77,0.00029023,5]
[381487854,1756230769695,-786.47,0.00029023,5]
[381487855,1756230769704,-615.26,0.00029023,5]
[381487856,1756230769714,-400.0,0.00029023,5]
[381487857,1756230769723,-617.18,0.00029023,5]
[381487858,1756230769731,-400.0,0.00029023,5]
[381487859,1756230769740,-1146.58,0.00029023,5]
[381487860,1756230769749,-414.98,0.00029023,5]
[381487861,1756230769759,-400.0,0.00029023,5]
[381487862,1756230769770,-645.15,0.00029023,5]
[381487863,1756230769779,-400.0,0.00029023,5]
[381487864,1756230769788,-400.0,0.00029023,5]
[381487865,1756230769797,-400.0,0.00029023,5]
[381487866,1756230769807,-400.0,0.00029023,5]
[381487867,1756230769815,-1487.28,0.00029023,5]
[381487868,1756230769825,-400.0,0.00029023,5]
[381487869,1756230769834,-709.5,0.00029023,5]
[381487870,1756230769844,-781.03,0.00029023,5]
[381487871,1756230769854,-736.53,0.00029023,5]
[381487872,1756230769864,-400.0,0.00029023,5]
[381487873,1756230769874,-400.0,0.00029023,5]
[381487874,1756230769884,-475.59,0.00029023,5]
[381487875,1756230769895,-400.0,0.00029023,5]
[381487876,1756230769904,-299.12894829,0.00029023,5]
[381487877,1756230769913,-400.0,0.00029023,5]
[381487878,1756230769923,-400.0,0.00029023,5]
[381487879,1756230769932,-586.19,0.00029023,5]
[381487880,1756230769941,-1100.6,0.00029023,5]
[381487881,1756230769951,-400.0,0.00029023,5]
[381487882,1756230769960,-558.77,0.00029023,5]
[381487883,1756230769971,-400.0,0.00029023,5]
[381487884,1756230769980,-400.0,0.00029023,5]
[381487885,1756230769990,-805.61,0.00029023,5]
[381487886,1756230769999,-587.26,0.00029023,5]
[381487887,1756230770010,-880.88,0.00029023,5]
[381487888,1756230770021,-1142.86,0.0002904,5]
[381487889,1756230770030,-1254.63,0.0002904,5]
[381487890,1756230770039,-1057.93,0.0002904,5]
[381487891,1756230770048,-1079.24,0.0002904,5]
[381487892,1756230770057,-3055.95,0.0002904,5]
[381487893,1756230770066,-1650.32,0.0002904,5]
[381487894,1756230770075,-13513.14,0.0002904,5]
[381487895,1756230770083,-2253.65,0.0002904,5]
[381487896,1756230770092,-1270.75,0.0002904,5]
[381487897,1756230770102,-2157.11,0.0002904,5]
[381487898,1756230770111,-1950.58,0.0002904,5]
[381487899,1756230770120,-1356.06,0.0002904,5]
[381487900,1756230770130,-1314.24,0.0002904,5]
[381487901,1756230770139,-1468.69,0.0002904,5]
[381487902,1756230770148,-809.74,0.0002904,5]
[381487903,1756230770161,-1206.09,0.0002904,5]
[381487904,1756230770170,-741.88,0.0002904,5]
[381487905,1756230770180,-1611.27,0.0002904,5]
[381487906,1756230770191,-1224.97,0.0002904,5]
[381487907,1756230770201,-1049.32,0.0002904,5]
[381487908,1756230770210,-976.61,0.0002904,5]
[381487909,1756230770219,-1611.56,0.0002904,5]
[381487910,1756230770228,-869.98,0.0002904,5]
[381487911,1756230770237,-1131.94,0.0002904,5]
[381487912,1756230770246,-782.57,0.0002904,5]
[381487913,1756230770255,-1548.86,0.0002904,5]
[381487914,1756230770265,-1331.02,0.0002904,5]
[381487915,1756230770274,-1391.3,0.0002904,5]
[381487916,1756230770284,-1191.31,0.0002904,5]
[381487917,1756230770295,-1107.49,0.0002904,5]
[381487918,1756230770304,-1320.74,0.0002904,5]
[381487919,1756230770313,-1054.46,0.0002904,5]
[381487920,1756230770328,-400.0,0.0002904,5]
[381487921,1756230770348,-1150.33,0.0002904,5]
[381487922,1756230770358,-819.86,0.0002904,5]
[381487923,1756230770368,-400.0,0.0002904,5]
[381487924,1756230770378,-933.75,0.0002904,5]
[381487925,1756230770388,-1547.78,0.0002904,5]
[381487926,1756230770397,-1438.18,0.0002904,5]
[381487927,1756230770407,-1497.03,0.0002904,5]
[381487928,1756230770416,-6789.96,0.0002904,5]
[381487929,1756230770425,-1497.12,0.0002904,5]
[381487930,1756230770434,-400.0,0.0002904,5]
[381487931,1756230770443,-863.08,0.0002904,5]
[381487932,1756230770452,-753.29,0.0002904,5]
[381487933,1756230770462,-787.78,0.0002904,5]
[381487934,1756230770472,-1613.31,0.0002904,5]
[381487935,1756230770481,-773.75,0.0002904,5]
[381487936,1756230770490,-586.3,0.0002904,5]
[381487937,1756230770499,-530.09,0.0002904,5]
[381487938,1756230770509,-1037.63,0.0002904,5]
[381487939,1756230770519,-1217.55,0.0002904,5]
[381487940,1756230770528,-1228.91,0.0002904,5]
[381487941,1756230770537,-400.0,0.0002904,5]
[381487942,1756230770546,-1141.77,0.0002904,5]
[381487943,1756230770555,-1590.13,0.0002904,5]
[381487944,1756230770564,-924.3,0.0002904,5]
[381487945,1756230770573,-575.23,0.0002904,5]
[381487946,1756230770582,-664.99,0.0002904,5]
[381487947,1756230770590,-778.5,0.0002904,5]
[381487948,1756230770600,-1457.28,0.0002904,5]
[381487949,1756230770609,-724.45,0.0002904,5]
[381487950,1756230770618,-847.97,0.0002904,5]
[381487951,1756230770627,-630.74,0.0002904,5]
[381487952,1756230770635,-1505.52,0.0002904,5]
[381487953,1756230770644,-717.92,0.0002904,5]
[381487954,1756230770654,-431.96,0.0002904,5]
[381487955,1756230770662,-1179.57,0.0002904,5]
[381487956,1756230770673,-1699.29,0.0002904,5]
[381487957,1756230770684,-854.23,0.0002904,5]
[381487958,1756230770693,-628.02,0.0002904,5]
[381487959,1756230770702,-1139.37,0.0002904,5]
[381487960,1756230770712,-480.43,0.0002904,5]
[381487961,1756230770722,-683.47,0.0002904,5]
[381487962,1756230770731,-1228.89,0.0002904,5]
[381487963,1756230770740,-400.0,0.00029041,5]
[381487964,1756230770749,-1156.63,0.00029041,5]
[381487965,1756230770759,-814.45,0.00029041,5]
[381487966,1756230770769,-400.0,0.00029041,5]
[381487967,1756230770778,-1203.77,0.00029041,5]
[381487968,1756230770787,-677.3,0.00029041,5]
[381487969,1756230770796,-1373.11,0.00029041,5]
[381487970,1756230770806,-412.27,0.00029041,5]
[381487971,1756230770815,-466.37,0.00029041,5]
[381487972,1756230770824,-884.22,0.00029041,5]
[381487973,1756230770834,-579.9,0.00029041,5]
[381487974,1756230770847,-223.00251572,0.00029041,5]
[381487975,1756230770855,-400.0,0.00029041,5]
[381487976,1756230770866,-503.27,0.00029041,5]
[381487977,1756230770876,-400.0,0.00029041,5]
[381487978,1756230770887,-783.4,0.00029041,5]
[381487979,1756230770895,-1036.02,0.00029041,5]
[381487980,1756230770904,-473.09,0.00029041,5]
[381487981,1756230770914,-400.0,0.00029041,5]
[381487982,1756230770924,-440.17,0.00029041,5]
[381487983,1756230770934,-1153.6,0.00029041,5]
[381487984,1756230770943,-985.74,0.00029041,5]
[381487985,1756230770953,-400.0,0.00029041,5]
[381487986,1756230770962,-640.2,0.00029041,5]
[381487987,1756230770971,-400.0,0.00029041,5]
[381487988,1756230770982,-743.45,0.00029041,5]
[381487989,1756230770992,-712.48,0.00029041,5]
[381487990,1756230771001,-400.0,0.00029041,5]
[381487991,1756230771011,-400.0,0.00029041,5]
[381487992,1756230771020,-700.09,0.00029041,5]
[381487993,1756230771029,-400.0,0.00029041,5]
[381487994,1756230771038,-520.22701323,0.00029041,5]
[381487995,1756230771047,-400.0,0.00029041,5]
[381487996,1756230771056,-693.81,0.00029041,5]
[381487997,1756230771065,-707.36,0.00029041,5]
[381487998,1756230771074,-406.06,0.00029041,5]
[381487999,1756230771083,-431.16,0.00029041,5]
[381488000,1756230771092,-701.05,0.00029041,5]
[381488001,1756230771101,-400.0,0.00029041,5]
[381488002,1756230771110,-547.99,0.00029041,5]
[381488003,1756230771119,-929.8,0.00029041,5]
[381488004,1756230771127,-400.0,0.00029041,5]
[381488005,1756230771136,-1530.59,0.00029041,5]
[381488006,1756230771145,-482.83,0.00029041,5]
[381488007,1756230771154,-490.23,0.00029041,5]
[381488008,1756230771162,-400.0,0.00029041,5]
[381488009,1756230771171,-445.31,0.00029041,5]
[381488010,1756230771180,-400.0,0.00029041,5]
[381488011,1756230771189,-1341.96,0.00029041,5]
[381488012,1756230771198,-155.58993742,0.00029041,5]
[381488013,1756230771207,-844.87,0.00029041,5]
[381488014,1756230771217,-613.14,0.00029041,5]
[381488015,1756230771227,-400.0,0.00029041,5]
[381488016,1756230771236,-400.0,0.00029041,5]
[381488017,1756230771246,-400.0,0.00029041,5]
[381488018,1756230771255,-746.97,0.00029041,5]
[381488019,1756230771264,-526.43,0.00029041,5]
[381488020,1756230771274,-1160.1,0.00029041,5]
[381488021,1756230771283,-262.77228093,0.00029041,5]
[381488022,1756230771292,-400.0,0.00029041,5]
[381488023,1756230771301,-807.88,0.00029041,5]
[381488024,1756230771310,-463.86144341,0.00029041,5]
[381488025,1756230771319,-1586.91,0.00029041,5]
[381488026,1756230771329,-1509.82,0.00029041,5]
[381488027,1756230771338,-642.17,0.00029041,5]
[381488028,1756230771347,-400.0,0.00029041,5]
[381488029,1756230771356,-721.04,0.00029041,5]
[381488030,1756230771365,-507.72,0.00029041,5]
[381488031,1756230771373,-400.0,0.00029041,5]
[381488032,1756230771382,-682.86,0.00029041,5]
[381488033,1756230771391,-400.0,0.00029041,5]
[381488034,1756230771400,-400.0,0.00029041,5]
[381488035,1756230771409,-793.12,0.00029041,5]
[381488036,1756230771418,-507.45,0.00029041,5]
[381488037,1756230771426,-670.75,0.00029041,5]
[381488038,1756230771435,-722.78,0.00029041,5]
[381488039,1756230771444,-1421.41,0.00029041,5]
[381488040,1756230771453,-685.96,0.00029041,5]
[381488041,1756230771462,-1219.97,0.00029041,5]
[381488042,1756230771473,-1393.79,0.00029041,5]
[381488043,1756230771482,-944.91,0.00029041,5]
[381488044,1756230771490,-400.0,0.00029041,5]
[381488045,1756230771499,-400.0,0.00029041,5]
[381488046,1756230771508,-616.04,0.00029041,5]
[381488047,1756230771517,-400.0,0.00029041,5]
[381488048,1756230771526,-400.0,0.00029041,5]
[381488049,1756230771535,-400.0,0.00029041,5]
[381488050,1756230771544,-400.0,0.00029041,5]
[381488051,1756230771554,-400.0,0.00029041,5]
[381488052,1756230771563,-744.71,0.00029041,5]
[381488053,1756230771572,-683.79,0.00029041,5]
[381488054,1756230771581,-496.42,0.00029041,5]
[381488055,1756230771590,-400.0,0.00029041,5]
[381488056,1756230771599,-400.0,0.00029041,5]
[381488057,1756230771608,-1520.2,0.00029041,5]
[381488058,1756230771617,-870.39,0.00029041,5]
[381488059,1756230771626,-759.54,0.00029041,5]
[381488060,1756230771635,-579.76,0.00029041,5]
[381488061,1756230771644,-2000.0,0.00029041,30]
[381488062,1756230771653,-1483.54,0.00029041,5]
[381488063,1756230771662,-513.44,0.00029041,5]
[381488064,1756230771672,-400.0,0.00029041,5]
[381488065,1756230771683,-1173.63,0.00029041,5]
[381488066,1756230771692,-400.0,0.00029041,5]
[381488067,1756230771701,-646.83,0.00029041,5]
[381488068,1756230771711,-781.98,0.00029041,5]
[381488069,1756230771722,-400.0,0.00029041,5]
[381488070,1756230771731,-483.54,0.00029041,5]
[381488071,1756230771742,-400.0,0.00029041,5]
[381488072,1756230771751,-465.8,0.00029041,5]
[381488073,1756230771762,-889.4,0.00029041,5]
[381488074,1756230771772,-779.46,0.00029041,5]
[381488075,1756230771782,-511.6,0.00029041,5]
[381488076,1756230771791,-400.0,0.00029041,5]
[381488077,1756230771799,-473.06,0.00029041,5]
[381488078,1756230771809,-491.1,0.00029041,5]
[381488079,1756230771818,-508.66,0.00029041,5]
[381488080,1756230771827,-531.34,0.00029041,5]
[381488081,1756230771836,-400.0,0.00029041,5]
[381488082,1756230771845,-696.35,0.00029041,5]
[381488083,1756230771854,-400.0,0.00029041,5]
[381488084,1756230771862,-801.56,0.00029041,5]
[381488085,1756230771871,-400.0,0.00029041,5]
[381488086,1756230771880,-400.0,0.00029041,5]
[381488087,1756230771890,-400.0,0.00029041,5]
[381488088,1756230771899,-400.0,0.00029041,5]
[381488089,1756230771908,-1420.8,0.00029041,5]
[381488090,1756230771917,-771.21,0.00029041,5]
[381488091,1756230771926,-489.59,0.00029041,5]
[381488092,1756230771935,-755.04,0.00029041,5]
[381488093,1756230771945,-400.0,0.00029041,5]
[381488094,1756230771954,-1769.58,0.00029041,5]
[381488095,1756230771963,-681.58,0.00029041,5]
[381488096,1756230771971,-400.0,0.00029041,5]
[381488097,1756230771980,-606.73,0.00029041,5]
[381488098,1756230771989,-606.73,0.00029041,5]
[381488099,1756230771998,-821.91,0.00029041,5]
[381488100,1756230772007,-837.01,0.00029041,5]
[381488101,1756230772140,-1166.43,0.00029041,5]
[381488102,1756230772150,-400.0,0.00029041,5]
[381488103,1756230772160,-400.0,0.00029041,5]
[381488104,1756230772169,-400.0,0.00029041,5]
[381488105,1756230772178,-799.6,0.00029041,5]
[381488106,1756230772187,-400.0,0.00029041,5]
[381488107,1756230772196,-1010.62,0.00029041,5]
[381488108,1756230772205,-690.36,0.00029041,5]
[381488109,1756230772214,-400.0,0.00029041,5]
[381488110,1756230772223,-637.61,0.00029041,5]
[381488111,1756230772233,-1281.24,0.00029041,5]
[381488112,1756230772243,-1590.4,0.00029041,5]
[381488113,1756230772251,-1064.68,0.00029041,5]
[381488114,1756230772261,-1271.37,0.00029041,5]
[381488115,1756230772270,-885.76,0.00029041,5]
[381488116,1756230772279,-491.41,0.00029041,5]
[381488117,1756230772288,-1493.75,0.00029041,5]
[381488118,1756230772297,-1336.69,0.00029041,5]
[381488119,1756230772307,-967.08,0.00029041,5]
[381488120,1756230772316,-408.42,0.00029041,5]
[381488121,1756230772326,-418.99,0.00029041,5]
[381488122,1756230772335,-917.22,0.00029041,5]
[381488123,1756230772345,-531.19,0.00029041,5]
[381488124,1756230772355,-1433.07,0.00029041,5]
[381488125,1756230772364,-257.47995836,0.00029041,5]
[381488126,1756230772373,-570.95,0.00029041,5]
[381488127,1756230772383,-903.82,0.00029041,5]
[381488128,1756230772393,-1558.37,0.00029041,5]
[381488129,1756230772403,-550.9,0.00029041,5]
[381488130,1756230772413,-400.0,0.00029041,5]
[381488131,1756230772423,-431.66,0.00029041,5]
[381488132,1756230772433,-664.06,0.00029041,5]
[381488133,1756230772443,-558.64,0.00029041,5]
[381488134,1756230772452,-400.0,0.00029041,5]
[381488135,1756230772462,-609.04,0.00029041,5]
[381488136,1756230772471,-774.95,0.00029041,5]
[381488137,1756230772481,-502.72,0.00029041,5]
[381488138,1756230772490,-839.6,0.00029041,5]
[381488139,1756230772500,-697.46,0.00029041,5]
[381488140,1756230772509,-968.44,0.00029041,5]
[381488141,1756230772519,-1276.22,0.00029041,5]
[381488142,1756230772530,-1172.64,0.00029041,5]
[381488143,1756230772540,-1114.22,0.00029041,5]
[381488144,1756230772549,-688.1,0.00029041,5]
[381488145,1756230772558,-571.99,0.00029041,5]
[381488146,1756230772567,-400.0,0.00029041,5]
[381488147,1756230772577,-509.97,0.00029041,5]
[381488148,1756230772588,-400.0,0.00029041,5]
[381488149,1756230772599,-400.0,0.00029041,5]
[381488150,1756230772609,-580.72,0.00029041,5]
[381488151,1756230772618,-640.51,0.00029041,5]
[381488152,1756230772627,-403.41,0.00029041,5]
[381488153,1756230772637,-821.79,0.00029041,5]
[381488154,1756230772646,-400.0,0.00029041,5]
[381488155,1756230772656,-400.0,0.00029041,5]
[381488156,1756230772665,-1039.88,0.00029041,5]
[381488157,1756230772675,-839.24,0.00029041,5]
[381488158,1756230772688,-417.78,0.00029041,5]
[381488159,1756230772697,-837.82,0.00029041,5]
[381488160,1756230772707,-400.0,0.00029041,5]
[381488161,1756230772717,-400.0,0.00029041,5]
[381488162,1756230772727,-400.0,0.00029041,5]
[381488163,1756230772737,-1270.77,0.00029041,5]
[381488164,1756230772746,-400.0,0.00029041,5]
[381488165,1756230772756,-400.0,0.00029041,5]
[381488166,1756230772766,-400.0,0.00029041,5]
[381488167,1756230772775,-895.98,0.00029041,5]
[381488168,1756230772784,-502.08,0.00029041,5]
[381488169,1756230772794,-598.04,0.00029041,5]
[381488170,1756230772803,-400.0,0.00029041,5]
[381488171,1756230772813,-865.23,0.00029041,5]
[381488172,1756230772822,-400.0,0.00029041,5]
[381488173,1756230772832,-518.54,0.00029041,5]
[381488174,1756230772843,-522.21,0.00029041,5]
[381488175,1756230772852,-848.23,0.00029041,5]
[381488176,1756230772862,-422.68,0.00029041,5]
[381488177,1756230772871,-528.98,0.00029041,5]
[381488178,1756230772882,-728.84,0.00029041,5]
[381488179,1756230772892,-963.39,0.00029041,5]
[381488180,1756230772901,-264.62087993,0.00029041,5]
[381488181,1756230772911,-400.0,0.00029041,5]
[381488182,1756230772920,-400.0,0.00029041,5]
[381488183,1756230772929,-618.88,0.00029041,5]
[381488184,1756230772939,-602.44392,0.00029041,5]
[381488185,1756230772949,-957.51,0.00029041,5]
[381488186,1756230772958,-461.75,0.00029041,5]
[381488187,1756230772967,-594.47,0.00029041,5]
[381488188,1756230772977,-1567.09,0.00029041,5]
[381488189,1756230772988,-503.53,0.00029041,5]
[381488190,1756230772998,-400.0,0.00029041,5]
[381488191,1756230773009,-400.0,0.00029041,5]
[381488192,1756230773020,-400.0,0.00029041,5]
[381488193,1756230773030,-1089.76,0.00029041,5]
[381488194,1756230773040,-1276.92,0.00029041,5]
[381488195,1756230773050,-674.18,0.00029041,5]
[381488196,1756230773059,-1533.69,0.00029041,5]
[381488197,1756230773070,-817.0,0.00029041,5]
[381488198,1756230773079,-173.559572,0.00029041,5]
[381488199,1756230773090,-400.0,0.00029041,5]
[381488200,1756230773100,-400.0,0.00029041,5]
[381488201,1756230773110,-676.42,0.00029041,5]
[381488202,1756230773121,-400.0,0.00029041,5]
[381488203,1756230773131,-1531.09,0.00029041,5]
[381488204,1756230773141,-400.0,0.00029041,5]
[381488205,1756230773153,-1459.11,0.00029041,5]
[381488206,1756230773164,-622.731684,0.00029041,5]
[381488207,1756230773176,-558.77,0.00029041,5]
[381488208,1756230773187,-400.0,0.00029041,5]
[381488209,1756230773197,-627.47,0.00029041,5]
[381488210,1756230773207,-400.0,0.00029041,5]
[381488211,1756230773217,-579.77,0.00029041,5]
[381488212,1756230773226,-1440.73,0.00029041,5]
[381488213,1756230773236,-400.0,0.00029041,5]
[381488214,1756230773246,-1242.42,0.00029041,5]
[381488215,1756230773255,-400.0,0.00029041,5]